bitfinex-derivatives/quotes_SOLF0:USTF0_20250923
["timestamp","ask_amount","ask_price","bid_price","bid_amount"]
[1758610922562,7.52,219.04,218.97,4.1072]
[1758610922869,2.06498218,219.02,218.93,5.05585058]
[1758610923070,2.06498218,219.02,218.92,7.12083276]
[1758610923864,7.52,219.01,218.91,5.05585058]
[1758610924069,2.06498218,218.99,218.89,71.03433276]
[1758610924874,2.06498218,218.99,218.91,4.1082]
[1758610925472,2.06498218,218.99,218.93,4.1079]
[1758610925678,7.52,219.01,218.93,4.1079]
[1758610927077,7.52,219.01,218.9,4.1085]
[1758610927278,7.52,218.98,218.9,4.1085]
[1758610927473,7.52,218.98,218.89,2.06498218]
[1758610927673,7.52,218.98,218.87,9.16485058]
[1758610927973,2.06498218,218.96,218.87,9.16485058]
[1758610928381,7.52,218.98,218.89,6.17368218]
[1758610929374,7.52,218.98,218.91,4.1083]
[1758610930774,7.52,218.98,218.93,4.1079]
[1758610931386,7.52,218.99,218.89,4.1086]
[1758610931680,7.52,218.99,218.9,2.06498218]
[1758610932480,7.52,218.99,218.91,4.1084]
[1758610934180,7.52,218.99,218.9,2.06498218]
[1758610935687,7.52,218.99,218.9,6.17348218]
[1758610936285,7.52,218.99,218.9,4.1085]
[1758610936487,7.52,218.99,218.9,6.17348218]
[1758610939289,7.52,218.99,218.9,4.1085]
[1758610939489,7.28,218.96,218.9,4.1085]
[1758610940790,7.28,219.02,218.91,2.06498218]
[1758610940987,9.34498218,219.02,218.91,2.06498218]
[1758610941492,7.28,219.02,218.94,2.06498218]
[1758610942493,9.34498218,219.06,218.94,65.96428218]
[1758610942691,63.8498,219.12,218.94,65.96428218]
[1758610942692,2.06498218,219.03,218.94,2.06498218]
[1758610942891,7.28,219.02,218.95,4.1075]
[1758610943492,7.28,219.02,218.92,2.06498218]
[1758610944493,7.28,219.02,218.93,4.1078]
[1758610945690,7.28,219.02,218.95,2.06498218]
[1758610946291,7.28,219.02,218.92,2.06498218]
[1758610946492,9.34498218,219.02,218.92,2.06498218]
[1758610946891,7.28,219.02,218.96,4.1074]
[1758610948190,7.28,219.02,218.93,4.1079]
[1758610948486,9.34498218,219.02,218.93,4.1079]
[1758610948683,7.28,219.02,218.92,2.06498218]
[1758610949899,7.28,219.02,218.95,4.1076]
[1758610950394,9.34498218,219.03,218.97,4.1072]
[1758610951201,9.34498218,219.03,218.94,4.1077]
[1758610952200,2.06498218,219.0,218.91,4.1083]
[1758610952396,7.32,218.99,218.91,4.1083]
[1758610954101,9.38498218,218.99,218.91,4.1083]
[1758610954301,9.38498218,218.99,218.89,7.12083276]
[1758610954302,9.38498218,218.99,218.89,2.06498218]
[1758610954609,2.06498218,218.96,218.85,7.12083276]
[1758610954802,7.32,218.95,218.85,7.12083276]
[1758610955504,7.32,218.95,218.88,2.06498218]
[1758610956302,7.32,218.95,218.9,4.1085]
[1758610956503,2.06498218,218.96,218.9,4.1085]
[1758610956699,9.38498218,218.96,218.9,4.1085]
[1758610957004,9.38498218,218.96,218.83,2.06498218]
[1758610957402,13.49238218,218.96,218.83,2.06498218]
[1758610957599,9.38498218,218.96,218.86,2.06498218]
[1758610958811,9.38498218,218.96,218.87,4.1089]
[1758610963008,7.32,218.92,218.85,4.1095]
[1758610966416,7.32,218.89,218.82,4.1099]
[1758610968012,7.32,218.89,218.84,4.1096]
[1758610968210,9.38498218,218.93,218.82,63.9347]
[1758610968411,7.32,218.93,218.82,63.9347]
[1758610968601,7.32,218.93,218.83,2.06498218]
[1758610968811,7.32,218.93,218.86,2.06498218]
[1758610969506,9.38498218,218.97,218.89,4.1086]
[1758610971217,7.32,218.97,218.89,4.1086]
[1758610971615,7.32,218.97,218.91,4.1083]
[1758610973115,7.32,218.97,218.88,4.1089]
[1758610973514,7.32,218.97,218.9,4.1085]
[1758610974616,7.32,218.97,218.87,6.17398218]
[1758610974915,7.32,218.95,218.87,4.109]
[1758610975806,7.32,218.95,218.88,4.1088]
[1758610976114,7.32,218.95,218.87,2.06498218]
[1758610976713,7.32,218.99,218.92,4.1082]
[1758610981612,7.32,218.99,218.89,0.03]
[1758610981613,7.32,218.99,218.89,4.1387]
[1758610983317,7.56,218.97,218.89,4.1387]
[1758610984614,7.56,218.97,218.91,4.1083]
[1758610988624,7.56,218.97,218.93,4.108]
[1758610988816,7.56,218.98,218.89,0.03]
[1758610989620,7.56,218.94,218.82,5.08585058]
[1758610990324,7.56,218.9,218.79,0.03]
[1758610990820,7.56,218.9,218.8,4.1104]
[1758610991537,7.56,218.9,218.82,4.11]
[1758610991723,10.79058967,218.97,218.83,0.03]
[1758610991928,3.23058967,218.93,218.83,0.03]
[1758610992222,7.56,218.91,218.79,0.03]
[1758610992826,7.56,218.91,218.83,4.1097]
[1758610994325,7.56,218.91,218.85,4.1394]
[1758610994627,7.56,218.91,218.85,4.1094]
[1758610998124,3.23058967,218.97,218.91,4.1083]
[1758610998125,7.56,218.97,218.91,4.1083]
[1758610998322,0.73076382,218.98,218.91,4.1083]
[1758610998323,7.56,218.96,218.91,4.1383]
[1758610998522,7.56,219.03,218.9,0.03]
[1758610998726,7.56,219.01,218.91,63.9086]
[1758610998933,7.56,219.01,218.95,4.1076]
[1758610999133,7.56,219.01,218.94,63.8996]
[1758610999334,7.56,219.09,218.95,0.03]
[1758610999632,7.56,219.06,218.97,4.1072]
[1758610999935,3.72958232,219.05,218.97,4.1072]
[1758611000130,7.56,219.04,218.95,0.03]
[1758611000331,3.72958232,219.03,218.95,0.03]
[1758611000532,7.56,219.04,218.95,0.03]
[1758611000732,3.72886414,219.03,218.95,0.03]
[1758611000924,7.56,219.04,218.95,0.03]
[1758611001129,3.7288629,219.03,218.95,0.03]
[1758611001329,7.56,219.04,218.95,0.03]
[1758611001836,7.56,219.04,218.96,4.1074]
[1758611002236,3.72739097,219.03,218.96,4.1074]
[1758611002437,7.56,219.04,218.96,4.1074]
[1758611002625,3.72716472,219.03,218.95,0.03]
[1758611002827,10.83737278,219.02,218.93,4.1079]
[1758611003030,7.11,219.02,218.93,4.1079]
[1758611007438,7.11,219.0,218.86,5.08952101]
[1758611007640,7.11,218.98,218.85,3.23058967]
[1758611008632,7.11,218.98,218.88,63.9174]
[1758611009936,7.11,218.98,218.91,4.1083]
[1758611014042,7.11,218.98,218.88,4.1088]
[1758611014242,7.11,218.98,218.86,63.9229]
[1758611015536,7.42,218.99,218.86,63.9229]
[1758611015744,7.42,218.97,218.87,4.109]
[1758611017439,7.42,218.97,218.87,63.9204]
[1758611018941,7.42,218.97,218.85,69.01552101]
[1758611019338,7.42,218.97,218.87,63.9202]
[1758611019535,7.42,218.97,218.87,67.15078967]
[1758611019942,7.42,218.97,218.92,4.1081]
[1758611020540,7.42,219.0,218.92,4.1081]
[1758611020847,7.42,219.0,218.89,4.1086]
[1758611021044,7.42,219.0,218.91,63.9084]
[1758611021540,7.42,219.0,218.92,63.9046]
[1758611021741,4.1054,219.07,218.93,63.9025]
[1758611021948,3.72795917,219.06,218.93,63.9025]
[1758611022145,3.72795917,219.05,218.93,63.9025]
[1758611022343,7.42,219.03,218.95,4.1076]
[1758611022946,7.42,219.03,218.92,4.1081]
[1758611023341,7.42,219.03,218.91,63.9086]
[1758611023542,7.42,219.03,218.94,4.1077]
[1758611024947,3.7273453,219.02,218.94,4.1077]
[1758611025150,7.42,219.03,218.96,4.1073]
[1758611025848,3.72732662,219.02,218.96,4.1073]
[1758611026052,7.42,219.03,218.96,4.1073]
[1758611026251,3.72726829,219.02,218.96,4.1073]
[1758611026451,7.42,219.03,218.96,4.1073]
[1758611026652,3.72726829,219.02,218.96,4.1073]
[1758611026852,7.42,219.03,218.96,4.1073]
[1758611028356,7.42,219.03,218.97,4.1071]
[1758611028853,68.89035091,219.12,218.93,67.13248967]
[1758611028854,7.42,219.07,219.01,4.1065]
[1758611029046,3.23058967,219.12,219.01,4.1065]
[1758611029248,7.42,219.05,218.91,68.99812101]
[1758611029451,3.72581213,219.04,218.96,4.1074]
[1758611029755,7.42,219.05,218.96,4.1074]
[1758611029950,3.72581175,219.04,218.96,4.1074]
[1758611030146,7.42,219.05,218.96,4.1074]
[1758611030454,7.42,219.03,218.96,4.1074]
[1758611030653,7.42,219.03,218.91,63.9086]
[1758611031653,7.42,219.03,218.95,4.1076]
[1758611034554,3.72538952,219.02,218.93,4.108]
[1758611034751,3.23058967,219.03,218.88,72.23591068]
[1758611034752,4.1067,219.0,218.88,67.14638967]
[1758611034955,7.42,218.99,218.88,3.23058967]
[1758611035653,7.42,218.97,218.9,4.1084]
[1758611039660,7.42,218.97,218.9,6.1763918]
[1758611041059,7.42,218.97,218.92,4.1082]
[1758611041863,7.54,218.99,218.92,4.1082]
[1758611042159,3.73363785,218.98,218.92,4.1082]
[1758611042359,7.54,218.99,218.9,4.1085]
[1758611042559,7.54,218.97,218.9,4.1085]
[1758611043556,7.54,218.99,218.89,2.0679918]
[1758611043762,3.73523417,218.98,218.89,2.0679918]
[1758611043963,3.73523417,218.97,218.91,2.0679918]
[1758611044161,7.54,218.99,218.91,2.0679918]
[1758611044358,3.73517897,218.98,218.91,2.0679918]
[1758611044557,3.73517897,218.97,218.91,2.0679918]
[1758611044758,7.54,218.99,218.93,4.1078]
[1758611045063,11.27517729,218.98,218.93,4.1078]
[1758611045258,3.73517729,218.97,218.93,4.1078]
[1758611045457,7.54,218.97,218.93,4.1078]
[1758611045658,2.0679918,219.0,218.93,4.1078]
[1758611045858,11.27521196,218.99,218.91,4.1083]
[1758611046060,3.73521196,218.98,218.91,4.1083]
[1758611046254,3.73521196,218.97,218.91,4.1083]
[1758611046455,7.54,218.99,218.91,4.1083]
[1758611046657,3.7352249,218.98,218.91,4.1083]
[1758611046852,3.7352249,218.97,218.91,4.1083]
[1758611047061,7.54,218.99,218.91,4.1083]
[1758611047263,3.73542055,218.98,218.91,4.1083]
[1758611047456,3.73542055,218.97,218.91,4.1083]
[1758611047657,7.54,218.99,218.91,4.1083]
[1758611047862,3.73541279,218.98,218.91,4.1083]
[1758611048058,3.73541279,218.97,218.91,4.1083]
[1758611048262,7.54,218.99,218.91,4.1083]
[1758611048463,3.73537317,218.98,218.91,4.1083]
[1758611048663,3.73537317,218.97,218.91,4.1083]
[1758611048863,7.54,218.99,218.91,4.1083]
[1758611049059,3.73537447,218.98,218.91,4.1083]
[1758611049262,3.73537447,218.97,218.91,4.1083]
[1758611049466,7.54,218.99,218.91,4.1083]
[1758611049666,3.73534649,218.98,218.91,4.1083]
[1758611049866,3.73534649,218.97,218.91,4.1083]
[1758611050068,7.54,218.99,218.91,4.1083]
[1758611050266,3.7659335,218.98,218.91,4.1083]
[1758611050566,3.7659335,218.97,218.91,4.1083]
[1758611050770,7.54,218.99,218.91,4.1083]
[1758611051065,3.76595429,218.98,218.91,4.1083]
[1758611051257,3.76595429,218.97,218.91,4.1083]
[1758611051461,7.54,218.99,218.91,4.1083]
[1758611051661,3.76596791,218.98,218.91,4.1083]
[1758611051961,3.76596791,218.97,218.91,4.1083]
[1758611052157,7.54,218.99,218.91,4.1083]
[1758611052369,3.76600155,218.98,218.91,4.1083]
[1758611052564,3.76600155,218.97,218.91,4.1083]
[1758611052766,7.54,218.99,218.91,4.1083]
[1758611053068,7.54,218.99,218.93,4.1079]
[1758611053268,7.54,218.99,218.93,2.0679918]
[1758611054869,7.54,219.03,218.93,2.0679918]
[1758611055166,3.76540005,219.02,218.93,2.0679918]
[1758611055366,3.76540005,219.01,218.93,2.0679918]
[1758611055563,7.54,219.03,218.93,2.0679918]
[1758611055764,4.1051,219.09,218.96,2.0679918]
[1758611055970,7.54,219.06,218.99,2.0679918]
[1758611056275,7.54,219.13,219.02,2.0679918]
[1758611056471,3.76185908,219.12,219.05,2.0679918]
[1758611056671,3.76185908,219.11,219.05,2.0679918]
[1758611056869,9.6079918,219.13,219.05,2.0679918]
[1758611057069,3.72174126,219.12,219.05,2.0679918]
[1758611057267,7.54,219.13,219.05,2.0679918]
[1758611057467,3.7187246,219.12,219.05,2.0679918]
[1758611057673,7.54,219.13,219.05,2.0679918]
[1758611057867,3.71872292,219.12,219.06,4.1055]
[1758611058079,7.54,219.13,219.06,4.1055]
[1758611058276,3.71859239,219.12,219.06,4.1055]
[1758611058578,7.54,219.13,219.06,4.1055]
[1758611059372,7.54,219.13,219.05,2.0679918]
[1758611059680,9.3679918,219.11,219.02,4.1061]
[1758611059880,7.3,219.11,219.04,6.1737918]
[1758611060376,7.3,219.11,219.04,2.0679918]
[1758611060777,7.3,219.13,219.06,4.1054]
[1758611061476,7.3,219.13,219.04,2.0679918]
[1758611062886,7.3,219.13,219.05,4.1057]
[1758611064488,7.3,219.13,219.02,4.1061]
[1758611064677,7.3,219.13,219.02,6.1740918]
[1758611065685,7.3,219.13,219.05,2.0679918]
[1758611067491,7.3,219.13,218.98,63.8867]
[1758611067492,3.70718209,219.12,219.02,2.0679918]
[1758611067694,9.3679918,219.11,219.02,2.0679918]
[1758611067992,9.3679918,219.11,219.01,6.1742918]
[1758611068695,9.3679918,219.08,218.98,6.1748918]
[1758611069486,9.3679918,219.08,219.0,4.1066]
[1758611070291,7.3,219.04,218.93,2.0679918]
[1758611070498,2.0679918,219.01,218.91,2.0679918]
[1758611070992,7.34,219.0,218.91,2.0679918]
[1758611071395,7.34,219.0,218.9,4.1084]
[1758611071588,2.0679918,218.98,218.89,2.0679918]
[1758611071790,7.34,218.97,218.89,2.0679918]
[1758611071996,7.34,218.97,218.86,5.87674046]
[1758611072291,7.34,218.97,218.86,2.0679918]
[1758611072886,7.34,218.97,218.87,4.1089]
[1758611073295,2.0679918,218.95,218.87,4.1089]
[1758611073487,7.34,218.94,218.87,4.1089]
[1758611073885,9.4079918,218.98,218.89,4.1087]
[1758611075690,7.34,218.98,218.89,4.1087]
[1758611075889,9.4079918,218.98,218.89,4.1087]
[1758611076396,9.4079918,218.98,218.86,6.1771918]
[1758611076597,2.0679918,218.95,218.86,6.1771918]
[1758611077198,9.4079918,218.95,218.86,6.1771918]
[1758611078494,9.4079918,218.95,218.86,4.1092]
[1758611083795,7.34,218.95,218.88,4.1088]
[1758611086601,2.0679918,218.96,218.9,4.1084]
[1758611086902,9.4079918,218.96,218.85,63.9248]
[1758611087102,7.34,218.95,218.88,4.1087]
[1758611091105,2.0679918,218.94,218.86,4.1092]
[1758611091304,7.34,218.93,218.83,100.82292756]
[1758611092503,7.34,218.93,218.84,4.1096]
[1758611093503,9.4079918,218.93,218.84,4.1096]
[1758611093702,7.34,218.93,218.83,164.75312756]
[1758611094296,7.34,218.93,218.86,2.0679918]
[1758611094497,7.34,218.93,218.87,4.1089]
[1758611095808,7.34,218.93,218.88,4.1087]
[1758611096602,7.34,218.99,218.89,2.0679918]
[1758611097413,7.34,218.99,218.91,4.1083]
[1758611099207,7.34,218.99,218.9,2.0679918]
[1758611100511,7.34,218.99,218.89,4.1087]
[1758611100915,7.34,218.99,218.9,4.1083]
[1758611108323,7.34,218.99,218.87,4.1089]
[1758611108521,7.55,218.97,218.87,4.1089]
[1758611109021,7.55,218.97,218.83,101.9859041]
[1758611109022,7.55,218.94,218.84,4.1095]
[1758611110322,11.6579,218.94,218.84,4.1095]
[1758611111327,7.55,218.92,218.84,4.1095]
[1758611111823,7.55,218.92,218.85,4.1093]
[1758611112022,7.55,218.92,218.83,67.16206834]
[1758611112221,7.55,218.96,218.83,67.16206834]
[1758611112422,7.55,218.96,218.84,69.01662101]
[1758611113216,3.77879365,218.95,218.84,69.01662101]
[1758611113417,7.55,218.96,218.85,5.08952101]
[1758611113625,3.77879365,218.95,218.85,5.08952101]
[1758611113826,7.55,218.96,218.89,4.1087]
[1758611114027,3.77879575,218.95,218.89,4.1087]
[1758611114330,7.55,218.96,218.89,4.1087]
[1758611114627,3.78120682,218.95,218.89,4.1087]
[1758611114828,7.55,218.96,218.89,4.1087]
[1758611115025,3.78121106,218.95,218.89,4.1087]
[1758611115227,3.7844845,218.94,218.89,4.1087]
[1758611115421,7.55,218.96,218.89,4.1087]
[1758611115620,3.7844845,218.95,218.86,9.19872101]
[1758611115822,7.55,218.93,218.85,5.08952101]
[1758611116018,3.7844845,218.92,218.84,5.08952101]
[1758611116222,7.55,218.91,218.84,5.08952101]
[1758611116422,7.55,218.91,218.83,9.19922101]
[1758611116723,7.55,218.91,218.83,5.11952101]
[1758611117027,3.78626492,218.9,218.83,0.03]
[1758611117225,7.55,218.91,218.83,0.03]
[1758611117627,3.78564885,218.9,218.82,5.08952101]
[1758611117928,3.23096834,218.96,218.79,7.5784091]
[1758611117929,11.27564885,218.89,218.79,5.11952101]
[1758611118116,7.49,218.87,218.79,5.11952101]
[1758611118322,7.49,218.87,218.79,0.03]
[1758611119126,10.72096834,218.87,218.77,5.08952101]
[1758611119329,10.72096834,218.87,218.76,5.08952101]
[1758611119330,7.49,218.85,218.76,5.08952101]
[1758611119625,7.49,218.85,218.75,5.08952101]
[1758611119835,7.49,218.85,218.76,4.1411]
[1758611120228,7.49,218.85,218.76,0.03]
[1758611121230,7.49,218.85,218.77,4.1108]
[1758611121426,7.49,218.85,218.78,0.03]
[1758611122328,7.49,218.86,218.74,12.46198935]
[1758611122831,4.1092,218.87,218.74,12.46198935]
[1758611123033,7.49,218.85,218.74,12.46198935]
[1758611124443,7.49,218.85,218.74,7.37246834]
[1758611125940,7.49,218.85,218.75,4.1111]
[1758611126940,7.49,218.85,218.77,4.1109]
[1758611127139,3.23096834,218.9,218.78,0.03]
[1758611127140,7.49,218.9,218.78,0.03]
[1758611127334,3.77348869,218.89,218.81,4.1102]
[1758611127538,7.49,218.9,218.81,4.1102]
[1758611127539,7.49,218.9,218.81,4.1402]
[1758611129035,7.49,218.88,218.76,0.03]
[1758611129235,7.49,218.86,218.76,0.03]
[1758611131841,7.49,218.86,218.78,4.1106]
[1758611132841,7.49,218.86,218.76,0.03]
[1758611133136,7.49,218.86,218.75,4.1112]
[1758611134242,7.49,218.86,218.72,4.1118]
[1758611134651,63.9157,218.89,218.68,8.32048935]
[1758611134652,6.98,218.83,218.68,8.32048935]
[1758611134841,6.98,218.83,218.68,3.23096834]
[1758611135646,11.0898,218.83,218.71,4.1119]
[1758611136743,6.98,218.83,218.73,4.1116]
[1758611139745,11.0898,218.83,218.71,4.1121]
[1758611140339,6.98,218.81,218.71,4.1121]
[1758611141047,6.98,218.81,218.7,63.969]
[1758611141948,6.98,218.81,218.74,4.1113]
[1758611146652,6.98,218.81,218.71,4.1119]
[1758611147051,6.98,218.81,218.69,63.972]
[1758611148452,6.98,218.81,218.74,4.1113]
[1758611150445,6.98,218.81,218.69,3.23096834]
[1758611150755,6.98,218.81,218.7,63.9683]
[1758611151655,6.98,218.81,218.73,4.1117]
[1758611153355,6.98,218.81,218.75,4.1113]
[1758611155660,6.98,218.81,218.72,4.1118]
[1758611155864,6.98,218.81,218.69,63.9719]
[1758611156660,6.98,218.81,218.74,4.1115]
[1758611157659,6.98,218.81,218.75,4.1112]
[1758611160576,6.98,218.81,218.75,6.18191245]
[1758611160775,7.52,218.86,218.77,2.07071245]
[1758611161081,7.52,218.86,218.74,63.9566]
[1758611161082,3.84806587,218.85,218.79,2.07071245]
[1758611161274,3.84806587,218.84,218.79,2.07071245]
[1758611161475,7.52,218.87,218.79,2.07071245]
[1758611161676,3.84926827,218.86,218.79,2.07071245]
[1758611161875,3.84926827,218.85,218.79,2.07071245]
[1758611162072,3.84926827,218.84,218.79,2.07071245]
[1758611162278,7.52,218.87,218.79,2.07071245]
[1758611162578,7.52,218.88,218.83,2.07071245]
[1758611162780,7.52,218.88,218.76,63.9503]
[1758611162781,3.85011401,218.87,218.76,63.9503]
[1758611162981,3.85011401,218.86,218.81,2.07071245]
[1758611163182,7.52,218.86,218.81,2.07071245]
[1758611163480,7.52,218.86,218.82,4.11]
[1758611163879,6.17901245,218.91,218.76,63.9503]
[1758611164181,11.37075807,218.9,218.81,2.07071245]
[1758611164381,3.85075807,218.89,218.81,2.07071245]
[1758611164781,7.52,218.88,218.81,2.07071245]
[1758611164971,3.85075807,218.87,218.81,2.07071245]
[1758611165175,11.37075807,218.87,218.81,2.07071245]
[1758611165375,7.52,218.85,218.81,2.07071245]
[1758611165776,6.17921245,218.91,218.81,2.07071245]
[1758611166078,6.17921245,218.91,218.79,2.07071245]
[1758611166079,2.07071245,218.89,218.79,2.07071245]
[1758611166275,2.07071245,218.85,218.76,4.1111]
[1758611166579,7.52,218.8,218.68,69.06192101]
[1758611166782,7.52,218.8,218.66,7.5784091]
[1758611166783,7.52,218.8,218.71,2.07071245]
[1758611166979,3.85267435,218.79,218.71,2.07071245]
[1758611167187,7.52,218.8,218.71,2.07071245]
[1758611167481,3.85284793,218.79,218.71,2.07071245]
[1758611167681,7.52,218.8,218.72,4.1119]
[1758611168083,3.84993665,218.79,218.72,4.1119]
[1758611168277,7.52,218.8,218.72,4.1119]
[1758611168478,7.52,218.8,218.73,2.07071245]
[1758611168781,9.59071245,218.85,218.75,2.07071245]
[1758611168976,7.52,218.83,218.75,2.07071245]
[1758611169172,3.84929588,218.82,218.75,2.07071245]
[1758611169479,3.84960727,218.81,218.73,2.07071245]
[1758611169677,11.36960727,218.8,218.73,2.07071245]
[1758611169882,7.52,218.8,218.73,2.07071245]
[1758611170381,3.8632401,218.79,218.73,2.07071245]
[1758611170681,7.52,218.8,218.73,2.07071245]
[1758611170876,3.8632401,218.79,218.73,2.07071245]
[1758611171081,7.52,218.8,218.73,2.07071245]
[1758611171285,3.86330747,218.79,218.73,2.07071245]
[1758611171582,7.52,218.8,218.73,6.18241245]
[1758611173076,3.86481657,218.79,218.73,6.18241245]
[1758611173273,7.52,218.8,218.73,6.18241245]
[1758611173578,3.86481657,218.79,218.73,6.18241245]
[1758611173779,7.52,218.8,218.73,6.18241245]
[1758611173980,3.86481657,218.79,218.73,6.18241245]
[1758611174282,7.52,218.8,218.73,6.18241245]
[1758611174482,3.86534478,218.79,218.73,6.18241245]
[1758611174683,7.52,218.8,218.73,6.18241245]
[1758611174881,3.86534478,218.79,218.73,6.18241245]
[1758611175081,7.52,218.8,218.73,6.18241245]
[1758611175279,7.52,218.78,218.71,4.1121]
[1758611175483,7.52,218.78,218.71,6.18281245]
[1758611176481,7.52,218.78,218.72,4.1117]
[1758611177282,10.98736585,218.77,218.72,4.1117]
[1758611177480,7.12,218.77,218.72,4.1117]
[1758611177977,7.12,218.77,218.73,4.1115]
[1758611179282,7.12,218.77,218.74,4.1113]
[1758611179483,7.12,218.77,218.72,2.07071245]
[1758611180788,7.12,218.77,218.73,4.1116]
[1758611180987,7.12,218.77,218.72,2.07071245]
[1758611181385,7.12,218.82,218.75,2.07071245]
[1758611181588,7.12,218.87,218.78,2.07071245]
[1758611181790,7.12,218.85,218.78,2.07071245]
[1758611182089,2.07071245,218.88,218.78,2.07071245]
[1758611182090,7.12,218.83,218.78,2.07071245]
[1758611182283,3.86701957,218.82,218.78,2.07071245]
[1758611182489,7.12,218.81,218.78,2.07071245]
[1758611182990,7.12,218.81,218.79,4.1104]
[1758611184491,2.07071245,218.86,218.76,4.111]
[1758611184686,10.98684603,218.85,218.76,4.111]
[1758611184885,7.12,218.83,218.76,4.111]
[1758611185082,7.12,218.81,218.73,4.1116]
[1758611185286,3.86684603,218.8,218.73,4.1116]
[1758611186787,3.86684603,218.8,218.7,4.1121]
[1758611186988,10.98684603,218.79,218.7,6.18281245]
[1758611187189,3.86684603,218.78,218.7,6.18281245]
[1758611187593,3.86684603,218.78,218.7,4.1121]
[1758611187994,7.12,218.77,218.7,4.1121]
[1758611190194,7.12,218.77,218.71,4.1119]
[1758611195104,2.07071245,218.79,218.73,4.1117]
[1758611195404,7.62,218.77,218.73,4.1117]
[1758611195603,7.62,218.78,218.73,4.1117]
[1758611195799,7.62,218.76,218.73,4.1117]
[1758611196806,7.62,218.76,218.74,4.1113]
[1758611197104,5.04155091,218.86,218.72,63.9624]
[1758611197300,2.07071245,218.82,218.73,2.07071245]
[1758611197502,11.483532,218.81,218.73,2.07071245]
[1758611197702,3.863532,218.8,218.73,2.07071245]
[1758611198000,3.863532,218.79,218.73,2.07071245]
[1758611198201,3.863532,218.78,218.73,2.07071245]
[1758611198407,7.62,218.81,218.73,2.07071245]
[1758611198597,3.86318933,218.8,218.75,2.07071245]
[1758611198803,7.62,218.83,218.75,2.07071245]
[1758611199004,3.8626902,218.82,218.75,2.07071245]
[1758611199300,7.62,218.83,218.75,2.07071245]
[1758611199301,3.8626902,218.81,218.75,2.07071245]
[1758611199498,2.07071245,218.89,218.79,2.07071245]
[1758611199696,3.8621187,218.88,218.79,2.07071245]
[1758611199900,3.8621187,218.87,218.79,2.07071245]
[1758611200103,7.62,218.88,218.8,63.9389]
[1758611200303,3.86017678,218.87,218.83,2.07071245]
[1758611200502,7.62,218.88,218.83,2.07071245]
[1758611200704,2.07071245,218.94,218.83,2.07071245]
[1758611200705,7.62,218.93,218.83,2.07071245]
[1758611200904,3.85203592,218.92,218.83,2.07071245]
[1758611201100,3.85203592,218.91,218.83,2.07071245]
[1758611201302,7.62,218.89,218.78,69.03502101]
[1758611201606,7.62,218.87,218.8,2.07071245]
[1758611202313,7.62,218.89,218.82,66.00341245]
[1758611202814,7.62,218.89,218.82,6.18051245]
[1758611203008,3.84979503,218.88,218.82,6.18051245]
[1758611203204,7.62,218.89,218.82,4.1098]
[1758611203404,2.07071245,218.92,218.84,4.1096]
[1758611203604,7.62,218.9,218.84,4.1096]
[1758611203811,3.8487113,218.89,218.84,4.1096]
[1758611204013,7.62,218.91,218.84,4.1096]
[1758611204211,3.84764354,218.9,218.84,4.1096]
[1758611204406,7.62,218.88,218.84,4.1096]
[1758611204710,7.62,218.91,218.84,4.1096]
[1758611204911,3.84764528,218.9,218.84,4.1096]
[1758611205105,7.62,218.88,218.86,4.1092]
[1758611207119,7.62,218.94,218.87,2.07071245]
[1758611207511,7.62,218.94,218.88,63.9163]
[1758611207808,7.62,218.94,218.9,4.1084]
[1758611208608,7.62,218.98,218.92,4.108]